bitfinex-derivatives/quotes_BNBF0:USTF0_20251220
["timestamp","ask_amount","ask_price","bid_price","bid_amount"]
[1766218917336,0.20322117,856.57,855.63,0.86514565]
[1766218918333,0.20322117,856.57,855.64,0.86514565]
[1766218919437,0.20322117,856.57,855.65,0.86514565]
[1766218921139,1.16597093,856.83,855.65,0.86514565]
[1766218921335,0.20317905,856.76,855.71,0.86514565]
[1766218921633,0.20317905,856.76,855.72,0.86514565]
[1766218922138,0.20317905,856.76,855.78,0.86514565]
[1766218922334,0.20317905,856.76,855.81,0.86514565]
[1766218923038,0.20317905,856.76,855.8,0.86514565]
[1766218923441,0.20317905,856.76,855.81,0.86514565]
[1766218926445,0.20317905,856.76,855.82,0.86514565]
[1766218927041,0.20317905,856.76,855.81,0.86514565]
[1766218927445,0.20317905,856.76,855.82,0.86514565]
[1766218930344,0.20317905,856.76,855.83,0.86514565]
[1766218931050,0.20317905,856.76,855.82,0.86514565]
[1766218931547,0.20317905,856.76,855.52,1.74023647]
[1766218931548,0.20317905,856.76,855.83,0.86514565]
[1766218937355,0.20317905,856.76,855.84,0.86514565]
[1766218938354,0.20317905,856.76,855.68,1.16015765]
[1766218941859,1.16597093,857.05,855.79,1.16015765]
[1766218942056,0.20315711,856.9,855.78,1.16015765]
[1766218943059,0.20315711,856.9,855.77,1.16015765]
[1766218943358,0.20315711,856.9,855.72,1.16015765]
[1766218943554,0.20315711,856.9,855.69,1.16015765]
[1766218944360,0.20315711,856.9,855.65,1.16015765]
[1766218949359,0.20315711,856.9,855.66,1.16015765]
[1766218958067,0.20315711,856.9,855.67,1.16015765]
[1766218964373,1.36912804,856.9,855.68,1.16015765]
[1766218968381,1.16597093,856.89,855.69,1.16015765]
[1766218968582,1.36912804,856.9,855.69,1.16015765]
[1766218969182,1.16597093,856.89,855.69,1.16015765]
[1766218970881,1.16597093,856.89,855.54,1.74023647]
[1766218970882,0.20315711,856.9,855.73,1.16015765]
[1766218971081,0.20315711,856.9,855.74,1.16015765]
[1766218971381,0.20315711,856.9,855.8,1.16015765]
[1766218972178,0.20315711,856.9,855.79,1.16015765]
[1766218972383,0.20315711,856.9,855.8,1.16015765]
[1766218974981,1.16597093,857.01,855.83,1.16015765]
[1766218975187,0.20313991,856.94,855.83,1.16015765]
[1766218978388,0.20313991,856.94,855.84,1.16015765]
[1766218979089,0.20313991,856.94,855.83,1.16015765]
[1766218979391,0.20313991,856.94,855.84,1.16015765]
[1766218984295,0.20313991,856.94,855.83,1.16015765]
[1766218986301,1.16597093,856.89,855.71,1.16015765]
[1766218996801,0.20313991,856.94,855.77,1.16015765]
[1766218998101,0.20313991,856.94,855.83,1.16015765]
[1766219001109,0.20313991,856.94,855.82,1.16015765]
[1766219018420,0.20313991,856.94,855.85,1.16015765]
[1766219018621,1.16597093,857.06,855.85,1.16015765]
[1766219018820,0.20312983,857.04,855.85,1.16015765]
[1766219020325,0.20312983,857.04,855.87,1.16015765]
[1766219020521,0.20312983,857.04,855.86,1.16015765]
[1766219021127,0.20312983,857.04,855.87,1.16015765]
[1766219021426,0.20312983,857.04,855.75,7.33817595]
[1766219021427,0.20312983,857.04,855.86,1.16015765]
[1766219022226,0.20312983,857.04,855.87,1.16015765]
[1766219022427,0.20312983,857.04,855.86,1.16015765]
[1766219023128,0.20312983,857.04,855.87,1.16015765]
[1766219023328,0.20312983,857.04,855.86,1.16015765]
[1766219024124,0.20312983,857.04,855.87,1.16015765]
[1766219024327,0.20312983,857.04,855.86,1.16015765]
[1766219025224,0.20312983,857.04,855.87,1.16015765]
[1766219031431,0.20312983,857.04,855.95,1.16015765]
[1766219032336,0.20312983,857.04,855.94,1.16015765]
[1766219035338,0.20312983,857.04,855.93,1.16015765]
[1766219039450,1.16597093,857.25,855.99,1.16015765]
[1766219039651,0.20310197,857.15,855.99,1.16015765]
[1766219041352,0.20310197,857.15,855.98,1.16015765]
[1766219043350,0.20310197,857.15,855.97,1.16015765]
[1766219045556,0.20310197,857.15,855.96,1.16015765]
[1766219053460,0.20310197,857.15,855.97,1.16015765]
[1766219056356,0.20310197,857.15,855.98,1.16015765]
[1766219071073,0.20310197,857.15,855.92,1.16015765]
[1766219071469,1.16597093,857.12,855.87,1.16015765]
[1766219071969,1.16597093,857.12,855.86,1.16015765]
[1766219072468,1.16597093,857.12,855.87,1.16015765]
[1766219073174,1.16597093,857.1,855.85,1.16015765]
[1766219073372,1.16597093,857.04,855.79,1.16015765]
[1766219074270,1.16597093,857.05,855.79,1.16015765]
[1766219074473,1.16597093,857.04,855.79,1.16015765]
[1766219079278,1.16597093,857.05,855.79,1.16015765]
[1766219079476,1.16597093,857.04,855.79,1.16015765]
[1766219080377,1.16597093,857.05,855.78,1.16015765]
[1766219086379,1.16597093,857.06,855.77,1.16015765]
[1766219091377,1.16597093,857.06,855.76,1.16015765]
[1766219092481,1.16597093,857.07,855.76,1.16015765]
[1766219096377,1.16597093,857.07,855.75,8.4983336]
[1766219100081,0.20310197,857.15,855.75,7.33817595]
[1766219100082,1.16597093,857.06,855.75,7.33817595]
[1766219104184,1.16597093,857.03,855.75,7.33817595]
[1766219115388,1.16597093,857.02,855.75,7.33817595]
[1766219119299,1.16597093,857.01,855.75,7.33817595]
[1766219122301,1.16597093,857.0,855.75,7.33817595]
[1766219124308,1.16597093,856.99,855.75,7.33817595]
[1766219125307,1.16597093,856.98,855.75,8.4983336]
[1766219126809,1.74895639,857.13,855.75,7.33817595]
[1766219127214,0.20310197,857.15,855.75,7.33817595]
[1766219127515,1.16614565,856.97,855.76,1.15940163]
[1766219127716,1.74921847,857.12,855.76,1.15940163]
[1766219128010,1.1661457,856.97,855.76,1.15943875]
[1766219128316,1.1661457,856.96,855.77,1.15943875]
[1766219129318,1.1661457,856.95,855.78,1.15943875]
[1766219130314,1.1661457,856.93,855.8,1.15943875]
[1766219131220,1.1661457,856.87,855.75,7.33817595]
[1766219131420,1.1661457,856.86,855.75,8.4976147]
[1766219131917,1.1661457,856.81,855.75,7.33817595]
[1766219133321,1.1661457,856.82,855.75,7.33817595]
[1766219134322,1.1661457,856.83,855.75,7.33817595]
[1766219136320,1.1661457,856.84,855.75,7.33817595]
[1766219139424,1.1661457,856.85,855.75,7.33817595]
[1766219140327,1.1661457,856.85,855.67,1.15943875]
[1766219142329,1.1661457,856.85,855.66,1.15943875]
[1766219145432,1.1661457,856.86,855.66,1.15943875]
[1766219148631,1.1661457,856.86,855.65,1.15943875]
[1766219156345,1.1661457,856.85,855.66,1.15943875]
[1766219167159,1.1661457,856.85,855.67,1.15943875]
[1766219171260,1.1661457,856.84,855.67,1.15943875]
[1766219172063,1.1661457,856.85,855.67,1.15943875]
[1766219172263,1.1661457,856.84,855.67,1.15943875]
[1766219176365,1.1661457,856.84,855.68,1.15943875]
[1766219178371,1.1661457,856.83,855.68,1.15943875]
[1766219178874,1.1661457,856.84,855.68,1.15943875]
[1766219179373,1.1661457,856.83,855.68,1.15943875]
[1766219181272,1.1661457,856.83,855.69,1.15943875]
[1766219183279,1.1661457,856.82,855.69,1.15943875]
[1766219184275,1.1661457,856.82,855.7,1.15943875]
[1766219186278,1.1661457,856.81,855.71,1.15943875]
[1766219189281,1.1661457,856.8,855.72,1.15943875]
[1766219190385,1.1661457,856.79,855.73,1.15943875]
[1766219190585,1.1661457,856.79,855.61,7.04098063]
[1766219190586,1.1661457,856.79,855.72,1.15943875]
[1766219191389,1.1661457,856.77,855.74,1.15943875]
[1766219215796,1.1661457,856.86,855.83,1.15943875]
[1766219216003,1.1661457,856.87,855.85,1.15943875]
[1766219216302,1.1661457,856.89,855.83,1.15943875]
[1766219216901,1.1661457,856.9,855.83,1.15943875]
[1766219217302,1.1661457,856.9,855.82,1.15943875]
[1766219218198,1.1661457,856.91,855.82,1.15943875]
[1766219219301,1.1661457,856.92,855.81,1.15943875]
[1766219223308,1.1661457,856.93,855.8,1.15943875]
[1766219226107,1.1661457,856.93,855.79,1.15943875]
[1766219227013,1.1661457,856.91,855.77,1.15943875]
[1766219227209,0.20310197,857.15,855.7,1.15943875]
[1766219227210,1.1661457,856.85,855.7,1.15943875]
[1766219228709,1.1661457,856.84,855.69,1.15943875]
[1766219236832,1.1661457,856.83,855.69,1.15943875]
[1766219237027,1.1661457,856.84,855.69,1.15943875]
[1766219237232,1.1661457,856.83,855.69,1.15943875]
[1766219238134,1.1661457,856.84,855.69,1.15943875]
[1766219238434,1.1661457,856.83,855.69,1.15943875]
[1766219238837,1.1661457,856.84,855.69,1.15943875]
[1766219240033,0.20319032,856.69,855.69,1.15943875]
[1766219242232,0.20319032,856.69,855.7,1.15943875]
[1766219243038,0.20319032,856.69,855.64,1.15943875]
[1766219243338,0.20319032,856.69,855.63,1.15943875]
[1766219251243,0.20319032,856.69,855.62,1.15943875]
[1766219262259,0.20319032,856.69,855.61,1.15943875]
[1766219278271,0.20319032,856.69,855.47,51.29618182]
[1766219278272,0.20319032,856.69,855.62,1.15943875]
[1766219282270,0.20319032,856.69,855.63,1.15943875]
[1766219284373,0.20319032,856.69,855.64,1.15943875]
[1766219285275,0.20319032,856.69,855.65,1.15943875]
[1766219287377,0.20319032,856.69,855.66,1.15943875]
[1766219295381,0.20319032,856.69,855.67,1.15943875]
[1766219300390,0.20319032,856.69,855.68,1.15943875]
[1766219302287,0.20319032,856.69,855.69,1.15943875]
[1766219328918,0.20319032,856.69,855.7,1.15943875]
[1766219335122,0.20319032,856.69,855.7,1.15943875]
[1766219339821,0.20319032,856.69,855.72,1.15943875]
[1766219343328,0.20319032,856.69,855.71,1.15943875]
[1766219353228,0.20319032,856.69,855.7,1.15943875]
[1766219388261,0.20319032,856.69,855.71,1.15943875]
[1766219398275,0.20319032,856.69,855.72,1.15943875]
[1766219402378,0.20319032,856.69,855.7,1.15943875]
[1766219403278,0.20319032,856.69,855.68,1.15943875]
[1766219405378,0.20319032,856.69,855.67,1.15943875]
[1766219407181,0.20319032,856.69,855.63,1.15943875]
[1766219411379,0.20319032,856.69,855.62,1.15943875]
[1766219415185,0.20319032,856.69,855.61,1.15943875]
[1766219424393,0.20319032,856.69,855.6,1.15943875]
[1766219433802,1.1661457,856.66,855.53,1.15943875]
[1766219435302,1.1661457,856.67,855.53,1.15943875]
[1766219437204,1.1661457,856.67,855.52,1.15943875]
[1766219439303,1.1661457,856.68,855.52,1.15943875]
[1766219440305,0.20322889,856.49,855.52,1.15943875]
[1766219445312,0.20322889,856.49,855.51,1.15943875]
[1766219449009,0.20322889,856.49,855.52,1.15943875]
[1766219457515,0.20322889,856.49,855.53,1.15943875]
[1766219458417,0.20322889,856.49,855.49,6.77349959]
[1766219514362,1.1661457,856.47,855.49,6.77349959]
[1766219514565,1.1661457,856.47,855.29,1.15943875]
[1766219514765,1.1661457,856.44,855.25,1.15943875]
[1766219515164,1.1661457,856.43,855.25,1.15943875]
[1766219517269,1.1661457,856.43,855.26,1.15943875]
[1766219523269,1.1661457,856.43,855.25,1.15943875]
[1766219525273,1.1661457,856.44,855.25,1.15943875]
[1766219526176,1.1661457,856.43,855.25,1.15943875]
[1766219526375,1.1661457,856.44,855.25,1.15943875]
[1766219533283,1.1661457,856.43,855.25,1.15943875]
[1766219535386,1.1661457,856.43,855.26,1.15943875]
[1766219539189,1.1661457,856.43,855.27,1.15943875]
[1766219540291,1.1661457,856.42,855.27,1.15943875]
[1766219548197,1.1661457,856.42,855.28,1.15943875]
[1766219552198,1.1661457,856.41,855.28,1.15943875]
[1766219560405,1.1661457,856.41,855.29,1.15943875]
[1766219564307,1.1661457,856.4,855.29,1.15943875]
[1766219565308,1.1661457,856.4,855.3,1.15943875]
[1766219568308,1.1661457,856.39,855.3,1.15943875]
[1766219570410,1.1661457,856.39,855.31,1.15943875]
[1766219571212,1.1661457,856.38,855.31,1.15943875]
[1766219572310,1.1661457,856.38,855.32,1.15943875]
[1766219573214,1.1661457,856.37,855.32,1.15943875]
[1766219574317,1.1661457,856.36,855.34,1.15943875]
[1766219610041,1.1661457,856.39,855.37,1.15943875]
[1766219610243,1.1661457,856.39,855.36,1.15943875]
[1766219611341,1.1661457,856.4,855.36,1.15943875]
[1766219615149,1.1661457,856.4,855.35,1.15943875]
[1766219620150,1.1661457,856.41,855.35,1.15943875]
[1766219629252,1.1661457,856.41,855.34,1.15943875]
[1766219640464,0.20328409,856.21,855.34,1.15943875]
[1766219648376,0.20328409,856.21,855.35,1.15943875]
[1766219667386,0.20328409,856.21,855.36,1.15943875]
[1766219709822,1.1661457,856.38,855.36,1.15943875]
[1766219710022,3.3981591,856.41,855.41,1.15943875]
[1766219710023,0.20326925,856.34,855.41,1.15943875]
[1766219710424,0.20326925,856.34,855.4,1.15943875]
[1766219712223,0.20326925,856.34,855.39,1.15943875]
[1766219718328,0.20326925,856.34,855.38,1.15943875]
[1766219720326,0.20326925,856.34,855.41,1.15943875]
[1766219724230,0.20326925,856.34,855.29,4.96420029]
[1766219724231,0.20326925,856.34,855.4,1.15943875]
[1766219730334,0.20326925,856.34,855.39,1.15943875]
[1766219749344,0.20326925,856.34,855.55,0.87185592]
[1766219753354,0.20326925,856.34,855.56,0.87185592]
[1766219762355,0.20326925,856.34,855.57,0.87185592]
[1766219766357,0.20326925,856.34,855.58,0.87185592]
[1766219769363,0.20326925,856.34,855.59,0.87185592]
[1766219772667,0.20326925,856.34,855.6,0.87185592]
[1766219773569,0.20326925,856.34,855.61,0.87185592]
[1766219773765,0.20326925,856.34,855.62,0.87185592]
[1766219774669,0.20326925,856.34,855.64,0.87185592]
[1766219775366,0.20326925,856.34,855.63,0.87185592]
[1766219777867,33.03593714,856.5,855.7,0.87185592]
[1766219778071,33.03593714,856.5,855.71,0.87185592]
[1766219779267,33.03593714,856.5,855.7,0.87185592]
[1766219780272,33.03593714,856.5,855.69,0.87185592]
[1766219780572,33.23916009,856.5,855.69,0.87185592]
[1766219780773,38.30951278,856.5,855.69,0.87185592]
[1766219781769,38.30951278,856.5,855.7,0.87185592]
[1766219782371,38.30951278,856.5,855.54,1.15943875]
[1766219782372,38.30951278,856.5,855.69,0.87185592]
[1766219782767,38.30951278,856.5,855.72,0.87185592]
[1766219783174,38.30951278,856.5,855.71,0.87185592]
[1766219784369,38.30951278,856.5,855.7,0.87185592]
[1766219786175,38.30951278,856.5,855.69,0.87185592]
[1766219789077,38.30951278,856.5,855.68,0.87185592]
[1766219791179,38.30951278,856.5,855.67,0.87185592]
[1766219795182,38.30951278,856.5,855.66,0.87185592]
[1766219801285,38.30951278,856.5,855.65,0.87185592]
[1766219802786,38.30951278,856.5,855.5,1.15943875]
[1766219802991,38.30951278,856.5,855.65,0.87036641]
[1766219806589,38.30951278,856.5,855.58,0.87036641]
[1766219808192,38.30951278,856.5,855.59,0.87036641]
[1766219809390,38.30951278,856.5,855.42,1.15943875]
[1766219809787,38.30951278,856.5,855.4,1.15943875]
[1766219810794,38.30951278,856.5,855.37,1.15943875]
[1766219812094,38.30951278,856.5,855.38,1.15943875]
[1766219819210,38.30951278,856.5,855.39,1.15943875]
[1766219819911,38.30951278,856.5,855.37,1.15943875]
[1766219820111,38.30951278,856.5,855.34,3.53633567]
[1766219821512,38.10628983,856.5,855.34,3.53633567]
[1766219825316,5.07035269,856.5,855.34,3.53633567]
[1766219825714,0.20326925,856.28,855.34,3.53633567]
[1766219832916,0.20326925,856.28,855.34,4.69577442]
[1766219833621,5.07035269,856.5,855.38,1.15943875]
[1766219833815,0.20325381,856.42,855.38,1.15943875]
[1766219834921,0.20325381,856.42,855.41,1.15943875]
[1766219836722,0.20325381,856.42,855.46,1.15943875]
[1766219843330,5.07035269,856.5,855.49,1.15943875]
[1766219843626,5.07035269,856.5,855.53,1.15943875]
[1766219844729,5.07035269,856.5,855.54,1.15943875]
[1766219847226,5.07035269,856.5,855.38,1.73910245]
[1766219847227,5.07035269,856.5,855.53,1.15943875]
[1766219853132,5.07035269,856.5,855.52,1.15943875]
[1766219859741,5.07035269,856.5,855.55,1.15943875]
[1766219862241,5.07035269,856.5,855.54,1.15943875]
[1766219867148,5.07035269,856.5,855.53,1.15943875]
[1766219874144,5.07035269,856.5,855.52,1.15943875]
[1766219874952,5.07035269,856.5,855.53,1.15943875]
[1766219875252,5.07035269,856.5,855.52,1.15943875]
[1766219881255,5.07035269,856.5,855.53,1.15943875]
[1766219883356,5.07035269,856.5,855.54,1.15943875]
[1766219885361,5.07035269,856.5,855.55,1.15943875]
[1766219886162,5.07035269,856.5,855.56,1.15943875]
[1766219887163,5.07035269,856.5,855.57,1.15943875]
[1766219889265,5.07035269,856.5,855.58,1.15943875]
[1766219890166,5.07035269,856.5,855.59,1.15943875]
[1766219891160,5.07035269,856.5,855.6,1.15943875]
[1766219892267,5.07035269,856.5,855.61,1.15943875]
[1766219893267,5.07035269,856.5,855.62,1.15943875]
[1766219894266,5.07035269,856.5,855.63,1.15943875]
[1766219896170,5.07035269,856.5,855.64,1.15943875]
[1766219899271,5.07035269,856.5,855.65,1.15943875]
[1766219901269,5.07035269,856.5,855.66,1.15943875]
[1766219902874,0.20322533,856.6,855.66,1.15943875]
[1766219903171,0.20322533,856.6,855.67,1.15943875]
[1766219908082,0.20322533,856.6,855.68,1.15943875]
[1766219918285,0.20322533,856.6,855.69,1.15943875]
[1766219919590,0.20322533,856.6,855.6,1.15943875]
[1766219920090,0.20322533,856.6,855.59,1.15943875]
[1766219921085,0.20322533,856.6,855.58,1.15943875]
[1766219922190,0.20322533,856.6,855.57,1.15943875]
[1766219925185,0.20322533,856.6,855.56,1.15943875]
[1766219928193,0.20322533,856.6,855.55,1.15943875]
[1766219934199,0.20322533,856.6,855.54,1.15943875]
[1766219945606,0.20322533,856.6,855.53,1.15943875]
[1766219954113,0.20322533,856.6,855.46,4.16808563]
[1766219954417,1.36937103,856.6,855.46,3.00864688]
[1766219955417,31.91786745,856.55,855.46,3.00864688]
[1766219957020,1.1661457,856.54,855.46,3.00864688]
[1766219957325,37.59979893,856.55,855.46,3.00864688]
[1766219958218,36.43365323,856.55,855.46,3.00864688]
[1766219958715,1.1661457,856.51,855.46,3.00864688]
[1766219959318,1.1661457,856.52,855.46,3.00864688]
[1766219959718,1.1661457,856.51,855.46,3.00864688]
[1766219960519,1.1661457,856.52,855.46,3.00864688]
[1766219961320,1.1661457,856.53,855.46,3.00864688]
[1766219962315,1.1661457,856.51,855.46,3.00864688]
[1766219964420,1.1661457,856.52,855.21,1.15943875]
[1766219965717,1.1661457,856.5,855.18,1.362708]
[1766219965918,1.1661457,856.49,855.18,1.362708]
[1766219966423,1.1661457,856.46,855.18,0.20326925]
[1766219966923,1.1661457,856.46,855.13,1.15943875]
[1766219967419,1.1661457,856.47,855.13,1.15943875]
[1766219968219,1.1661457,856.48,855.12,1.15943875]
[1766219969222,1.1661457,856.49,855.11,1.15943875]
[1766219970120,1.1661457,856.48,855.11,1.15943875]
[1766219970425,1.1661457,856.49,855.11,1.15943875]
[1766219971226,1.1661457,856.5,855.1,1.15943875]
[1766219971427,1.1661457,856.49,855.1,1.15943875]
[1766219972326,1.1661457,856.5,855.1,1.15943875]
[1766219973323,1.1661457,856.5,855.09,1.15943875]
[1766219974928,1.1661457,856.43,855.02,1.15943875]
[1766219975327,1.1661457,856.43,855.01,1.15943875]
[1766219976025,1.1661457,856.37,854.98,0.20331794]
[1766219976224,1.1661457,856.32,854.98,0.20331794]
[1766219976624,1.1661457,856.32,854.88,1.15943875]
[1766219977229,1.1661457,856.33,854.87,0.20335358]
[1766219978332,1.1661457,856.34,854.87,0.20335358]
[1766219979232,1.1661457,856.35,854.87,0.20335358]
[1766219980333,1.1661457,856.36,854.87,0.20335358]
[1766219981231,1.1661457,856.37,854.87,0.20335358]
[1766219982334,1.1661457,856.38,854.87,0.20335358]
[1766219984234,1.1661457,856.39,854.87,0.20335358]
[1766219985434,1.1661457,856.4,854.87,0.20335358]
[1766219987240,1.1661457,856.41,854.87,0.20335358]
[1766219990345,1.1661457,856.42,854.87,0.20335358]
[1766219991543,1.1661457,856.47,854.87,0.20335358]
[1766219994150,1.1661457,856.46,854.87,0.20335358]
[1766219999152,1.1661457,856.45,854.87,0.20335358]
[1766220001656,1.1661457,856.44,854.87,0.20335358]
[1766220004263,1.1661457,856.43,854.87,0.20335358]
[1766220005362,1.1661457,856.42,854.87,0.20335358]
[1766220006263,1.1661457,856.42,854.87,1.36279233]
[1766220007169,1.1661457,856.41,854.88,1.15943875]
[1766220008368,1.1661457,856.4,854.88,1.15943875]
[1766220009271,1.1661457,856.39,854.89,1.15943875]
[1766220010270,1.1661457,856.38,854.9,1.15943875]
[1766220011365,1.1661457,856.37,854.91,1.15943875]
[1766220012170,1.1661457,856.36,854.93,1.15943875]
[1766220013373,1.1661457,856.34,854.94,1.15943875]
[1766220014374,1.1661457,856.33,854.95,1.15943875]
[1766220015278,1.1661457,856.32,854.96,1.15943875]
[1766220016173,1.1661457,856.31,854.97,1.15943875]
[1766220017376,1.1661457,856.31,854.98,1.15943875]
[1766220018377,1.1661457,856.3,854.99,1.15943875]
[1766220019181,1.1661457,856.29,854.99,1.15943875]
[1766220020380,1.1661457,856.29,855.0,1.15943875]
[1766220021280,1.1661457,856.28,855.01,1.15943875]
[1766220022188,1.1661457,856.27,855.01,1.15943875]
[1766220023184,1.1661457,856.27,855.02,1.15943875]
[1766220024480,1.1661457,856.26,855.02,1.15943875]
[1766220025283,1.1661457,856.25,855.03,1.15943875]
[1766220026184,1.1661457,856.25,855.04,1.15943875]
[1766220027291,1.1661457,856.24,855.04,1.15943875]
[1766220028289,1.1661457,856.24,855.05,1.15943875]
[1766220029394,1.1661457,856.23,855.05,1.15943875]
[1766220030394,1.1661457,856.22,855.06,1.15943875]
[1766220031292,1.1661457,856.22,855.07,1.15943875]
[1766220032195,1.1661457,856.21,855.07,1.15943875]
[1766220033197,1.1661457,856.2,855.08,1.15943875]
[1766220034298,1.1661457,856.19,855.1,1.15943875]
[1766220035495,1.1661457,856.18,855.1,1.15943875]
[1766220041202,1.1661457,856.18,855.11,1.15943875]
[1766220043705,0.20334348,855.92,855.11,1.15943875]
[1766220048305,0.20334348,855.92,855.12,1.15943875]
[1766220051208,0.20334348,855.92,855.13,1.15943875]
[1766220053014,0.20334348,855.92,855.1,1.15943875]
[1766220054315,0.20334348,855.92,855.09,1.15943875]
[1766220054516,0.20334348,855.92,855.04,1.15943875]
[1766220055312,0.20334348,855.92,855.03,1.15943875]
[1766220056316,0.20334348,855.92,855.02,1.15943875]
[1766220057419,0.20334348,855.92,855.01,1.15943875]
[1766220057613,0.20334348,855.92,855.02,1.15943875]
[1766220058220,0.20334348,855.92,855.01,1.15943875]
[1766220061426,0.20334348,855.92,855.0,1.15943875]
[1766220061824,0.20334348,855.92,855.01,1.15943875]
[1766220062020,0.20334348,855.92,855.0,1.15943875]
[1766220066128,0.20334348,855.92,854.99,1.15943875]
[1766220067029,0.20334348,855.92,855.0,1.15943875]
[1766220067229,0.20334348,855.92,854.99,1.15943875]
[1766220079334,0.20334348,855.92,854.98,1.15943875]
[1766220089135,0.20334348,855.92,854.99,1.15943875]
[1766220097746,0.20334348,855.92,855.01,1.15943875]
[1766220097947,0.20334348,855.92,855.05,1.15943875]
[1766220104249,0.20334348,855.92,855.06,1.15943875]
[1766220110352,0.20334348,855.92,855.07,1.15943875]
[1766220113458,0.20334348,855.92,855.04,1.15943875]
[1766220114658,0.20334348,855.92,855.03,1.15943875]
[1766220146173,0.20334348,855.92,855.04,1.15943875]
[1766220165291,0.20334348,855.92,855.05,1.15943875]
[1766220172198,0.20334348,855.92,855.06,1.15943875]
[1766220180802,0.20334348,855.92,855.07,1.15943875]
[1766220181500,0.20334348,855.92,855.12,1.15943875]
[1766220182405,0.20334348,855.92,855.11,1.15943875]
[1766220184407,0.20334348,855.92,855.1,1.15943875]
[1766220188311,0.20334348,855.92,855.09,1.15943875]
[1766220199219,0.20334348,855.92,855.08,1.15943875]
[1766220211425,0.20334348,855.92,855.07,1.15943875]
[1766220216636,0.20334348,855.92,855.08,1.15943875]
[1766220216837,0.20334348,855.92,855.07,1.15943875]
[1766220217233,0.20334348,855.92,855.08,1.15943875]
[1766220232250,0.20334348,855.92,855.09,1.15943875]
[1766220237151,0.20334348,855.92,855.1,1.15943875]
[1766220241254,0.20334348,855.92,854.87,3.31671691]
[1766220241255,0.20334348,855.92,855.12,1.15943875]
[1766220272692,0.20334348,855.92,855.11,1.15943875]
[1766220323729,0.20334348,855.92,855.05,1.15943875]
[1766220324334,0.20334348,855.92,855.04,1.15943875]
[1766220327134,0.20334348,855.92,855.03,1.15943875]
[1766220327836,1.1661457,856.01,854.96,1.15943875]
[1766220328034,0.20336071,855.83,854.96,1.15943875]
[1766220328233,0.20336071,855.83,854.95,1.15943875]
[1766220329334,0.20336071,855.83,854.94,1.15943875]
[1766220330339,0.20336071,855.83,854.93,1.15943875]
[1766220332138,0.20336071,855.83,854.92,1.36277629]
[1766220334237,0.20336071,855.83,854.92,0.20333754]
[1766220351857,0.20336071,855.83,854.88,1.15943875]
[1766220352055,0.20336071,855.83,854.8,1.15943875]
[1766220352954,0.20336071,855.83,854.77,1.15943875]
[1766220353155,0.20336071,855.83,854.75,0.20339696]
[1766220408608,0.20336071,855.83,854.71,1.15943875]
[1766220409213,0.20336071,855.83,854.72,1.15943875]
[1766220410314,0.20336071,855.83,854.73,1.15943875]
[1766220411415,0.20336071,855.83,854.75,1.15943875]
[1766220414212,1.36950641,855.83,854.75,1.15943875]
[1766220416217,1.36950641,855.83,854.76,1.15943875]
[1766220418717,1.1661457,855.82,854.76,1.15943875]
[1766220418913,1.1661457,855.82,854.75,1.15943875]
[1766220421318,1.1661457,855.81,854.75,1.15943875]
[1766220422321,1.1661457,855.81,854.76,1.15943875]
[1766220422519,1.1661457,855.81,854.75,1.15943875]
[1766220423123,1.1661457,855.81,854.76,1.15943875]
[1766220425326,1.1661457,855.8,854.77,1.15943875]
[1766220431426,1.1661457,855.77,854.74,1.15943875]
[1766220431626,1.1661457,855.7,854.68,1.15943875]
[1766220432129,1.1661457,855.72,854.66,1.15943875]
[1766220434127,1.1661457,855.73,854.65,1.15943875]
[1766220435231,1.1661457,855.73,854.64,1.15943875]
[1766220436137,1.1661457,855.74,854.64,1.15943875]
[1766220438133,1.1661457,855.75,854.63,5.7483243]
[1766220442135,1.1661457,855.76,854.63,4.58888555]
[1766220444043,1.1661457,855.75,854.63,4.58888555]
[1766220444342,1.1661457,855.73,854.63,4.58888555]
[1766220448045,1.1661457,855.74,854.63,4.58888555]
[1766220450348,1.1661457,855.73,854.63,4.58888555]
[1766220451548,1.1661457,855.68,854.63,4.58888555]
[1766220453050,1.1661457,855.69,854.63,4.58888555]
[1766220455154,1.1661457,855.7,854.63,4.58888555]
[1766220459061,1.1661457,855.71,854.63,4.58888555]
[1766220461562,1.1661457,855.7,854.63,4.58888555]
[1766220467168,1.1661457,855.71,854.63,4.58888555]
[1766220470369,1.1661457,855.7,854.63,4.58888555]
[1766220471566,1.1661457,855.71,854.63,4.58888555]
[1766220478269,1.1661457,855.7,854.63,4.58888555]
[1766220481875,1.1661457,855.69,854.63,4.58888555]
[1766220483181,1.1661457,855.68,854.63,4.58888555]
[1766220486083,1.1661457,855.67,854.63,4.58888555]
[1766220489184,1.1661457,855.66,854.63,4.58888555]
[1766220490190,1.1661457,855.65,854.63,4.58888555]
[1766220493192,1.1661457,855.64,854.63,4.58888555]
[1766220498102,1.1661457,855.63,854.63,4.58888555]
[1766220499900,1.1661457,855.69,854.63,4.58888555]
[1766220501707,1.1661457,855.67,854.63,4.58888555]
[1766220502208,1.1661457,855.66,854.63,4.58888555]
[1766220502808,1.1661457,855.66,854.57,1.15943875]
[1766220507111,1.1661457,855.66,854.58,1.15943875]
[1766220507311,32.02242832,855.75,854.7,1.15943875]
[1766220507808,32.02242832,855.75,854.72,1.15943875]
[1766220508211,32.02242832,855.75,854.7,1.15943875]